fUST/lending_fUST_20250214
["ID","MTS","AMOUNT","RATE_DAILY","PERIOD"]
[353001180,1739483452943,-500.0,0.00013863,2]
[353001181,1739483452952,-500.0,0.00013863,2]
[353001182,1739483452962,-1262.91,0.00013863,2]
[353001183,1739483452971,-500.0,0.00013863,2]
[353001184,1739483452981,-500.0,0.00013863,2]
[353001185,1739483452990,-500.0,0.00013863,2]
[353001186,1739483452999,-4151.97,0.00013863,2]
[353001187,1739483453009,-500.0,0.00013863,2]
[353001188,1739483453018,-284.98,0.00013863,2]
[353001189,1739483453027,-500.0,0.00013863,2]
[353001191,1739483453037,-500.0,0.00013863,2]
[353001192,1739483453047,-500.0,0.00013863,2]
[353001193,1739483453056,-500.0,0.00013863,2]
[353001194,1739483453066,-542.0682329,0.00013863,2]
[353001195,1739483453075,-500.0,0.00013863,2]
[353001196,1739483453085,-654.34,0.00013863,2]
[353001197,1739483453095,-529.38,0.00013863,2]
[353001198,1739483453105,-500.0,0.00013863,2]
[353001199,1739483453117,-500.0,0.00013863,2]
[353001200,1739483453126,-500.0,0.00013863,2]
[353001201,1739483453136,-500.0,0.00013863,2]
[353001202,1739483453146,-500.0,0.00013863,2]
[353001203,1739483453156,-500.0,0.00013863,2]
[353001204,1739483453167,-501.6,0.00013863,2]
[353001205,1739483453176,-500.0,0.00013863,2]
[353001206,1739483453186,-500.0,0.00013863,2]
[353001207,1739483453199,-500.0,0.00013863,2]
[353001208,1739483453209,-500.0,0.00013863,2]
[353001209,1739483453220,-637.05,0.00013863,2]
[353001210,1739483453230,-500.0,0.00013863,2]
[353001211,1739483453240,-607.87,0.00013863,2]
[353001212,1739483453251,-500.0,0.00013863,2]
[353001213,1739483453260,-500.0,0.00013863,2]
[353001214,1739483453270,-500.0,0.00013863,2]
[353001215,1739483453280,-500.0,0.00013863,2]
[353001216,1739483453291,-555.62,0.00013863,2]
[353001217,1739483453300,-500.0,0.00013863,2]
[353001218,1739483453310,-500.0,0.00013863,2]
[353001219,1739483453319,-189.36543911,0.00013863,2]
[353001220,1739483453329,-500.0,0.00013863,2]
[353001221,1739483453339,-500.0,0.00013863,2]
[353001222,1739483453348,-500.0,0.00013863,2]
[353001223,1739483453357,-500.0,0.00013863,2]
[353001224,1739483453367,-500.0,0.00013863,2]
[353001225,1739483453377,-542.81751405,0.00013863,2]
[353001226,1739483453387,-500.0,0.00013863,2]
[353001227,1739483453398,-680.2955,0.00013863,2]
[353001228,1739483453408,-680.2955,0.00013863,2]
[353001229,1739483453418,-500.0,0.00013863,2]
[353001230,1739483453428,-2812.242156,0.00013863,2]
[353001231,1739483453438,-737.85,0.00013863,2]
[353001232,1739483453447,-154.364751,0.00013863,2]
[353001233,1739483453457,-2812.242156,0.00013863,2]
[353001234,1739483453467,-500.0,0.00013863,2]
[353001235,1739483453478,-500.0,0.00013863,2]
[353001236,1739483453488,-154.364751,0.00013863,2]
[353001237,1739483453497,-844.56,0.00013863,2]
[353001238,1739483453506,-500.0,0.00013863,2]
[353001239,1739483453515,-603.64841268,0.00013863,2]
[353001240,1739483453525,-500.0,0.00013863,2]
[353001241,1739483453535,-500.0,0.00013863,2]
[353001242,1739483453545,-500.0,0.00013863,2]
[353001243,1739483453556,-500.0,0.00013863,2]
[353001244,1739483453567,-500.0,0.00013863,2]
[353001245,1739483453577,-500.0,0.00013863,2]
[353001246,1739483453587,-500.0,0.00013863,2]
[353001247,1739483453597,-841.19,0.00013863,2]
[353001248,1739483453607,-515.485591,0.00013863,2]
[353001249,1739483453617,-500.0,0.00013863,2]
[353001250,1739483453628,-500.0,0.00013863,2]
[353001251,1739483453643,-500.0,0.00013863,2]
[353001252,1739483453662,-515.485591,0.00013863,2]
[353001253,1739483453672,-500.0,0.00013863,2]
[353001254,1739483453682,-649.83,0.00013863,2]
[353001255,1739483453692,-500.0,0.00013863,2]
[353001256,1739483453703,-1503.25,0.00013863,2]
[353001257,1739483453713,-500.0,0.00013863,2]
[353001258,1739483453722,-500.0,0.00013863,2]
[353001259,1739483453732,-3279.00782972,0.00013888,2]
[353001260,1739483453742,-568.185399,0.00013888,2]
[353001261,1739483453752,-568.185399,0.00013888,2]
[353001262,1739483453762,-151.0,0.00013888,2]
[353001263,1739483453772,-151.0,0.00013888,2]
[353001264,1739483453781,-536.177749,0.00013888,2]
[353001265,1739483453791,-536.177749,0.00013888,2]
[353001266,1739483453801,-500.0,0.00013944,2]
[353001267,1739483453811,-620.93547107,0.00013944,2]
[353001268,1739483453820,-500.0,0.00013944,2]
[353001269,1739483453830,-500.0,0.00013944,2]
[353001270,1739483453839,-200.82292408,0.00013944,2]
[353001271,1739483453849,-500.0,0.00013944,2]
[353001272,1739483453858,-500.0,0.00013944,2]
[353001273,1739483453868,-500.0,0.00013944,2]
[353001274,1739483453877,-500.0,0.00013944,2]
[353001275,1739483453887,-500.0,0.00013944,2]
[353001276,1739483453897,-500.0,0.00013944,2]
[353001277,1739483453907,-151.0,0.00013944,2]
[353001278,1739483453917,-151.0,0.00013944,2]
[353001279,1739483453927,-151.0,0.00013944,2]
[353001280,1739483453936,-151.0,0.00013944,2]
[353001281,1739483453946,-880.957763,0.00013944,2]
[353001282,1739483453956,-151.0,0.00013944,2]
[353001283,1739483453966,-880.957763,0.00013944,2]
[353001284,1739483453976,-151.0,0.00013944,2]
[353001285,1739483453986,-151.0,0.00013944,2]
[353001286,1739483453995,-151.0,0.00013944,2]
[353001287,1739483454005,-2238.69,0.00013944,2]
[353001288,1739483454015,-500.0,0.00013944,2]
[353001289,1739483454025,-500.0,0.00013945,2]
[353001290,1739483454035,-151.0,0.00013945,2]
[353001291,1739483454046,-636.44,0.00013945,2]
[353001292,1739483454055,-500.0,0.00013945,2]
[353001293,1739483454065,-500.0,0.00013945,2]
[353001294,1739483454075,-500.0,0.00013945,2]
[353001295,1739483454084,-500.0,0.00013945,2]
[353001296,1739483454094,-500.0,0.00013945,2]
[353001297,1739483454103,-500.0,0.00013945,2]
[353001298,1739483454112,-500.0,0.00013945,2]
[353001299,1739483454122,-500.0,0.00013945,2]
[353001300,1739483454132,-500.0,0.00013945,2]
[353001301,1739483454142,-500.0,0.00013945,2]
[353001302,1739483454152,-500.0,0.00013945,2]
[353001303,1739483454162,-500.0,0.00013945,2]
[353001304,1739483454172,-500.0,0.00013945,2]
[353001305,1739483454183,-500.0,0.00013945,2]
[353001306,1739483454194,-500.0,0.00013945,2]
[353001307,1739483454208,-500.0,0.00013945,2]
[353001308,1739483454218,-500.0,0.00013945,2]
[353001309,1739483454228,-500.0,0.00013945,2]
[353001310,1739483454238,-264.55542862,0.00013945,2]
[353001311,1739483454248,-822.8,0.00013945,2]
[353001312,1739483454258,-1141.48,0.00013945,2]
[353001313,1739483454267,-500.0,0.00013945,2]
[353001314,1739483454278,-500.0,0.00013945,2]
[353001315,1739483454287,-481.5,0.00013945,2]
[353001316,1739483454298,-1198.4,0.00013945,2]
[353001317,1739483454307,-500.0,0.00013945,2]
[353001318,1739483454316,-500.0,0.00013945,2]
[353001319,1739483454326,-500.0,0.00013945,2]
[353001320,1739483454336,-500.0,0.00013945,2]
[353001321,1739483454345,-500.0,0.00013945,2]
[353001322,1739483454355,-500.0,0.00013945,2]
[353001323,1739483454365,-7564.99,0.00013945,2]
[353001324,1739483454374,-212.53760609,0.00013945,2]
[353001325,1739483454384,-2098.112538,0.00013945,2]
[353001326,1739483454393,-1179.42,0.00013945,2]
[353001327,1739483454403,-2098.112538,0.00013945,2]
[353001328,1739483454412,-500.0,0.00013945,2]
[353001329,1739483454422,-500.0,0.00013945,2]
[353001330,1739483454431,-500.0,0.00013945,2]
[353001331,1739483454440,-500.0,0.00013945,2]
[353001332,1739483454450,-1262.91,0.00013945,2]
[353001333,1739483454460,-500.0,0.00013945,2]
[353001334,1739483454470,-500.0,0.00013945,2]
[353001335,1739483454480,-4151.97,0.00013945,2]
[353001336,1739483454490,-541.65258495,0.00013945,2]
[353001337,1739483454500,-654.34,0.00013945,2]
[353001338,1739483454509,-197.33129184,0.00013945,2]
[353001339,1739483454519,-500.0,0.00013945,2]
[353001340,1739483454528,-1657.394251,0.00013945,2]
[353001341,1739483454539,-500.0,0.00013945,2]
[353001342,1739483454549,-1657.394251,0.00013945,2]
[353001343,1739483454558,-500.0,0.00013945,2]
[353001344,1739483454568,-501.6,0.00013945,2]
[353001345,1739483454577,-500.0,0.00013945,2]
[353001346,1739483454586,-500.0,0.00013945,2]
[353001347,1739483454595,-567.42,0.00013945,2]
[353001348,1739483454605,-500.0,0.00013945,2]
[353001349,1739483454614,-298.7,0.00013945,2]
[353001350,1739483454623,-316.51,0.00013945,2]
[353001351,1739483454633,-500.0,0.00013945,2]
[353001352,1739483454642,-680.2955,0.00013945,2]
[353001353,1739483454652,-680.2955,0.00013945,2]
[353001354,1739483454661,-2812.242156,0.00013945,2]
[353001355,1739483454671,-737.85,0.00013945,2]
[353001356,1739483454681,-154.364751,0.00013945,2]
[353001357,1739483454691,-2812.242156,0.00013945,2]
[353001358,1739483454701,-452.35,0.00013945,2]
[353001359,1739483454711,-154.364751,0.00013945,2]
[353001360,1739483454720,-844.56,0.00013945,2]
[353001361,1739483454729,-500.0,0.00013945,2]
[353001362,1739483454739,-268.61,0.00013945,2]
[353001363,1739483454749,-500.0,0.00013945,2]
[353001364,1739483454759,-841.19,0.00013945,2]
[353001365,1739483454769,-515.485591,0.00013945,2]
[353001366,1739483454780,-500.0,0.00013945,2]
[353001367,1739483454790,-515.485591,0.00013945,2]
[353001368,1739483454800,-500.0,0.00013945,2]
[353001369,1739483454810,-649.83,0.00013945,2]
[353001370,1739483454819,-1503.25,0.00013945,2]
[353001371,1739483454828,-500.0,0.00013945,2]
[353001372,1739483454838,-500.0,0.00013945,2]
[353001373,1739483454847,-500.0,0.00013999,2]
[353001374,1739483454857,-500.0,0.00014026,2]
[353001375,1739483454867,-637.68972311,0.00014026,2]
[353001376,1739483454877,-1364.363296,0.00014026,2]
[353001377,1739483454887,-1364.363296,0.00014026,2]
[353001378,1739483454896,-151.0,0.00014026,2]
[353001379,1739483454906,-151.0,0.00014026,2]
[353001380,1739483454915,-151.0,0.00014026,2]
[353001381,1739483454925,-151.0,0.00014026,2]
[353001382,1739483454935,-500.0,0.00014026,2]
[353001383,1739483454945,-151.0,0.00014026,2]
[353001384,1739483454954,-500.0,0.00014026,2]
[353001385,1739483454965,-1247.739229,0.00014026,2]
[353001386,1739483454975,-1247.739229,0.00014026,2]
[353001387,1739483454984,-151.0,0.00014026,2]
[353001388,1739483454994,-2238.69,0.00014026,2]
[353001389,1739483455004,-500.0,0.00014026,2]
[353001390,1739483455013,-2098.112538,0.00014026,2]
[353001391,1739483455023,-2098.112538,0.00014026,2]
[353001392,1739483455033,-568.185399,0.00014026,2]
[353001393,1739483455044,-568.185399,0.00014026,2]
[353001394,1739483455053,-151.0,0.00014026,2]
[353001395,1739483455064,-1657.394251,0.00014026,2]
[353001396,1739483455074,-1657.394251,0.00014026,2]
[353001397,1739483455085,-151.0,0.00014026,2]
[353001398,1739483455095,-536.177749,0.00014026,2]
[353001399,1739483455105,-536.177749,0.00014026,2]
[353001400,1739483455115,-500.0,0.00014027,2]
[353001401,1739483455125,-371.59,0.00014027,2]
[353001402,1739483455134,-151.0,0.00014027,2]
[353001403,1739483455144,-151.0,0.00014027,2]
[353001404,1739483455153,-153.847106,0.00014027,2]
[353001405,1739483455163,-880.957763,0.00014027,2]
[353001406,1739483455172,-411.4399,0.00014027,2]
[353001407,1739483455184,-151.0,0.00014027,2]
[353001408,1739483455198,-880.957763,0.00014027,2]
[353001409,1739483455219,-151.0,0.00014027,2]
[353001410,1739483455232,-151.0,0.00014027,2]
[353001411,1739483455242,-151.0,0.00014027,2]
[353001412,1739483455252,-411.4399,0.00014027,2]
[353001413,1739483455263,-500.0,0.00014027,2]
[353001414,1739483455272,-462.21,0.00014027,2]
[353001415,1739483455282,-368.20074,0.00014027,2]
[353001416,1739483455291,-500.0,0.00014027,2]
[353001417,1739483455302,-368.20074,0.00014027,2]
[353001418,1739483455311,-313.57191,0.00014027,2]
[353001419,1739483455321,-313.57191,0.00014027,2]
[353001420,1739483455330,-500.0,0.00014027,2]
[353001421,1739483455339,-151.0,0.00014027,2]
[353001422,1739483455349,-500.0,0.00014027,2]
[353001423,1739483455359,-151.0,0.00014027,2]
[353001424,1739483455472,-151.0,0.00014027,2]
[353001425,1739483455483,-225.840494,0.00014027,2]
[353001426,1739483455493,-500.0,0.00014027,2]
[353001427,1739483455502,-444.96891303,0.00014027,2]
[353001428,1739483455512,-500.0,0.00014027,2]
[353001429,1739483455522,-151.0,0.00014027,2]
[353001430,1739483455532,-500.0,0.00014027,2]
[353001431,1739483455542,-151.0,0.00014027,2]
[353001432,1739483455552,-231.180894,0.00014027,2]
[353001433,1739483455562,-500.0,0.00014027,2]
[353001434,1739483455572,-201.303637,0.00014027,2]
[353001435,1739483455582,-281.523429,0.00014027,2]
[353001436,1739483455591,-201.303637,0.00014027,2]
[353001437,1739483455601,-151.0,0.00014027,2]
[353001438,1739483455611,-822.8,0.00014027,2]
[353001439,1739483455621,-1225.323567,0.00014027,2]
[353001440,1739483455630,-1141.48,0.00014027,2]
[353001441,1739483455639,-1225.323567,0.00014027,2]
[353001442,1739483455649,-500.0,0.00014027,2]
[353001443,1739483455659,-521.25,0.00014027,2]
[353001444,1739483455669,-804.348746,0.00014027,2]
[353001445,1739483455679,-1198.4,0.00014027,2]
[353001446,1739483455690,-804.348746,0.00014027,2]
[353001447,1739483455700,-500.0,0.00014027,2]
[353001448,1739483455709,-500.0,0.00014027,2]
[353001449,1739483455719,-500.0,0.00014027,2]
[353001450,1739483455729,-418.75128294,0.00014027,2]
[353001451,1739483455738,-500.0,0.00014027,2]
[353001452,1739483455748,-7564.99,0.00014027,2]
[353001453,1739483455758,-1179.42,0.00014027,2]
[353001454,1739483455767,-500.0,0.00014027,2]
[353001455,1739483455777,-500.0,0.00014027,2]
[353001456,1739483455786,-500.0,0.00014027,2]
[353001457,1739483455796,-1262.91,0.00014027,2]
[353001458,1739483455806,-500.0,0.00014027,2]
[353001459,1739483455815,-500.0,0.00014027,2]
[353001460,1739483455827,-4151.97,0.00014027,2]
[353001461,1739483455837,-654.34,0.00014027,2]
[353001462,1739483455847,-500.0,0.00014027,2]
[353001463,1739483455857,-501.6,0.00014027,2]
[353001464,1739483455867,-500.0,0.00014027,2]
[353001465,1739483455878,-500.0,0.00014027,2]
[353001466,1739483455888,-500.0,0.00014027,2]
[353001467,1739483455898,-737.85,0.00014027,2]
[353001468,1739483455909,-844.56,0.00014027,2]
[353001469,1739483455920,-500.0,0.00014027,2]
[353001470,1739483455929,-500.0,0.00014027,2]
[353001471,1739483455939,-841.19,0.00014027,2]
[353001472,1739483455949,-390.70348273,0.00014027,2]
[353001473,1739483455958,-566.24,0.00014027,2]
[353001474,1739483455969,-649.83,0.00014027,2]
[353001475,1739483455979,-1503.25,0.00014027,2]
[353001476,1739483455988,-199.46,0.00014027,2]
[353001477,1739483455998,-618.02,0.00014027,2]
[353001478,1739483456007,-153.0,0.0001405,2]
[353001479,1739483456016,-153.0,0.0001405,2]
[353001480,1739483456025,-153.0,0.0001405,2]
[353001481,1739483456035,-153.0,0.0001405,2]
[353001482,1739483456045,-153.0,0.0001405,2]
[353001483,1739483456054,-153.0,0.0001405,2]
[353001484,1739483456063,-153.0,0.0001405,2]
[353001485,1739483456072,-153.0,0.0001405,2]
[353001486,1739483456081,-153.0,0.0001405,2]
[353001487,1739483456091,-153.0,0.0001405,2]
[353001488,1739483456101,-153.0,0.0001405,2]
[353001489,1739483456112,-153.0,0.0001405,2]
[353001490,1739483456123,-153.0,0.0001405,2]
[353001491,1739483456133,-153.0,0.0001405,2]
[353001492,1739483456144,-153.0,0.0001405,2]
[353001493,1739483456153,-153.0,0.0001405,2]
[353001494,1739483456162,-153.0,0.0001405,2]
[353001495,1739483456172,-153.0,0.0001405,2]
[353001496,1739483456181,-153.0,0.0001405,2]
[353001497,1739483456191,-153.0,0.0001405,2]
[353001498,1739483456204,-153.0,0.0001405,2]
[353001499,1739483456213,-153.0,0.0001405,2]
[353001500,1739483456222,-153.0,0.0001405,2]
[353001501,1739483456232,-153.0,0.0001405,2]
[353001502,1739483456243,-153.0,0.0001405,2]
[353001503,1739483456252,-153.0,0.0001405,2]
[353001504,1739483456262,-153.0,0.0001405,2]
[353001505,1739483456272,-153.0,0.0001405,2]
[353001506,1739483456282,-153.0,0.0001405,2]
[353001507,1739483456292,-153.0,0.0001405,2]
[353001508,1739483456301,-153.0,0.0001405,2]
[353001509,1739483456312,-153.0,0.0001405,2]
[353001510,1739483456323,-153.0,0.0001405,2]
[353001511,1739483456334,-153.0,0.0001405,2]
[353001512,1739483456345,-153.0,0.0001405,2]
[353001513,1739483456355,-153.0,0.0001405,2]
[353001514,1739483456366,-153.0,0.0001405,2]
[353001515,1739483456376,-153.0,0.0001405,2]
[353001516,1739483456385,-153.0,0.0001405,2]
[353001517,1739483456396,-153.0,0.0001405,2]
[353001518,1739483456406,-153.0,0.0001405,2]
[353001519,1739483456416,-153.0,0.0001405,2]
[353001520,1739483456428,-153.0,0.0001405,2]
[353001521,1739483456437,-153.0,0.0001405,2]
[353001522,1739483456447,-153.0,0.0001405,2]
[353001523,1739483456456,-153.0,0.0001405,2]
[353001524,1739483456466,-153.0,0.0001405,2]
[353001525,1739483456477,-153.0,0.0001405,2]
[353001526,1739483456487,-153.0,0.0001405,2]
[353001527,1739483456497,-153.0,0.0001405,2]
[353001528,1739483456510,-153.0,0.0001405,2]
[353001529,1739483456520,-153.0,0.0001405,2]
[353001530,1739483456531,-3346.88013033,0.000141,2]
[353001531,1739483456540,-680.2955,0.000141,2]
[353001532,1739483456551,-13268.2024787,0.000141,2]
[353001533,1739483456562,-680.2955,0.000141,2]
[353001534,1739483456573,-2812.242156,0.000141,2]
[353001535,1739483456582,-154.364751,0.000141,2]
[353001536,1739483456592,-2812.242156,0.000141,2]
[353001537,1739483456601,-154.364751,0.000141,2]
[353001538,1739483456611,-154.137068,0.00014108,2]
[353001539,1739483456621,-353.704374,0.00014108,2]
[353001540,1739483456631,-353.704374,0.00014108,2]
[353001541,1739483456640,-379.755366,0.00014108,2]
[353001542,1739483456649,-379.755366,0.00014108,2]
[353001543,1739483456659,-1113.266,0.00014109,2]
[353001544,1739483456669,-500.0,0.00014109,2]
[353001545,1739483456679,-500.0,0.00014109,2]
[353001546,1739483456689,-151.0,0.00014109,2]
[353001547,1739483456699,-591.14,0.00014109,2]
[353001548,1739483456710,-500.0,0.00014109,2]
[353001549,1739483456720,-500.0,0.00014109,2]
[353001550,1739483456729,-500.0,0.00014109,2]
[353001551,1739483456740,-500.0,0.00014109,2]
[353001552,1739483456749,-500.0,0.00014109,2]
[353001553,1739483456759,-500.0,0.00014109,2]
[353001554,1739483456769,-500.0,0.00014109,2]
[353001555,1739483456779,-822.8,0.00014109,2]
[353001556,1739483456789,-1141.48,0.00014109,2]
[353001557,1739483456798,-500.0,0.00014109,2]
[353001558,1739483456807,-1198.4,0.00014109,2]
[353001559,1739483456817,-2238.69,0.00014109,2]
[353001560,1739483456828,-500.0,0.00014109,2]
[353001561,1739483456837,-500.0,0.00014109,2]
[353001562,1739483456846,-520.288437,0.00014109,2]
[353001563,1739483456857,-500.0,0.00014109,2]
[353001564,1739483456868,-500.0,0.00014109,2]
[353001565,1739483456878,-7564.99,0.00014109,2]
[353001566,1739483456887,-2098.112538,0.00014109,2]
[353001567,1739483456897,-1179.42,0.00014109,2]
[353001568,1739483456906,-2098.112538,0.00014109,2]
[353001569,1739483456916,-500.0,0.00014109,2]
[353001570,1739483456926,-500.0,0.00014109,2]
[353001571,1739483456936,-500.0,0.00014109,2]
[353001572,1739483456948,-1262.91,0.00014109,2]
[353001573,1739483456958,-500.0,0.00014109,2]
[353001574,1739483456967,-500.0,0.00014109,2]
[353001575,1739483456978,-4151.97,0.00014109,2]
[353001576,1739483456988,-654.34,0.00014109,2]
[353001577,1739483457000,-500.0,0.00014109,2]
[353001578,1739483457009,-1657.394251,0.00014109,2]
[353001579,1739483457019,-1657.394251,0.00014109,2]
[353001580,1739483457030,-501.6,0.00014109,2]
[353001581,1739483457041,-500.0,0.00014109,2]
[353001582,1739483457051,-500.0,0.00014109,2]
[353001583,1739483457060,-500.0,0.00014109,2]
[353001584,1739483457070,-737.85,0.00014109,2]
[353001585,1739483457080,-844.56,0.00014109,2]
[353001586,1739483457089,-500.0,0.00014109,2]
[353001587,1739483457099,-500.0,0.00014109,2]
[353001588,1739483457108,-841.19,0.00014109,2]
[353001589,1739483457118,-515.485591,0.00014109,2]
[353001590,1739483457127,-515.485591,0.00014109,2]
[353001591,1739483457137,-649.83,0.00014109,2]
[353001592,1739483457147,-1503.25,0.00014109,2]
[353001593,1739483457156,-179.739,0.00014113,2]
[353001594,1739483457165,-151.0,0.00014184,2]
[353001595,1739483457176,-151.0,0.00014184,2]
[353001596,1739483457186,-151.0,0.00014184,2]
[353001597,1739483457195,-568.185399,0.00014184,2]
[353001598,1739483457209,-568.185399,0.00014184,2]
[353001599,1739483457219,-151.0,0.00014184,2]
[353001600,1739483457228,-151.0,0.00014184,2]
[353001601,1739483457238,-536.177749,0.00014184,2]
[353001602,1739483457249,-536.177749,0.00014184,2]
[353001603,1739483457259,-1247.739229,0.00014189,2]
[353001604,1739483457268,-1247.739229,0.00014189,2]
[353001605,1739483457278,-151.0,0.00014189,2]
[353001606,1739483457287,-1364.363296,0.00014191,2]
[353001607,1739483457298,-1364.363296,0.00014191,2]
[353001608,1739483457308,-151.0,0.00014191,2]
[353001609,1739483457321,-151.0,0.00014191,2]
[353001610,1739483457332,-151.0,0.00014191,2]
[353001611,1739483457345,-151.0,0.00014191,2]
[353001612,1739483457357,-151.0,0.00014191,2]
[353001613,1739483457367,-500.0,0.00014191,2]
[353001614,1739483457376,-411.4399,0.00014191,2]
[353001615,1739483457386,-411.4399,0.00014191,2]
[353001616,1739483457396,-500.0,0.00014191,2]
[353001617,1739483457406,-368.20074,0.00014191,2]
[353001618,1739483457416,-500.0,0.00014191,2]
[353001619,1739483457426,-368.20074,0.00014191,2]
[353001620,1739483457435,-313.57191,0.00014191,2]
[353001621,1739483457444,-313.57191,0.00014191,2]
[353001622,1739483457454,-500.0,0.00014191,2]
[353001623,1739483457463,-151.0,0.00014191,2]
[353001624,1739483457473,-552.16659721,0.00014191,2]
[353001625,1739483457482,-151.0,0.00014191,2]
[353001626,1739483457492,-151.0,0.00014191,2]
[353001627,1739483457501,-447.53,0.00014191,2]
[353001628,1739483457511,-500.0,0.00014191,2]
[353001629,1739483457520,-500.0,0.00014191,2]
[353001630,1739483457530,-281.523429,0.00014191,2]
[353001631,1739483457539,-201.303637,0.00014191,2]
[353001632,1739483457549,-281.523429,0.00014191,2]
[353001633,1739483457558,-201.303637,0.00014191,2]
[353001634,1739483457568,-151.0,0.00014191,2]
[353001635,1739483457578,-822.8,0.00014191,2]
[353001636,1739483457587,-1225.323567,0.00014191,2]
[353001637,1739483457596,-1141.48,0.00014191,2]
[353001638,1739483457606,-1225.323567,0.00014191,2]
[353001639,1739483457615,-500.0,0.00014191,2]
[353001640,1739483457625,-804.348746,0.00014191,2]
[353001641,1739483457634,-1198.4,0.00014191,2]
[353001642,1739483457644,-804.348746,0.00014191,2]
[353001643,1739483457653,-2238.69,0.00014191,2]
[353001644,1739483457663,-500.0,0.00014191,2]
[353001645,1739483457673,-500.0,0.00014191,2]
[353001646,1739483457682,-500.0,0.00014191,2]
[353001647,1739483457692,-500.0,0.00014191,2]
[353001648,1739483457702,-7564.99,0.00014191,2]
[353001649,1739483457712,-1179.42,0.00014191,2]
[353001650,1739483457722,-500.0,0.00014191,2]
[353001651,1739483457731,-500.0,0.00014191,2]
[353001652,1739483457741,-500.0,0.00014191,2]
[353001653,1739483457750,-1262.91,0.00014191,2]
[353001654,1739483457760,-500.0,0.00014191,2]
[353001655,1739483457770,-500.0,0.00014191,2]
[353001656,1739483457779,-4151.97,0.00014191,2]
[353001657,1739483457788,-654.34,0.00014191,2]
[353001658,1739483457798,-500.0,0.00014191,2]
[353001659,1739483457807,-501.6,0.00014191,2]
[353001660,1739483457817,-500.0,0.00014191,2]
[353001661,1739483457826,-500.0,0.00014191,2]
[353001662,1739483457835,-500.0,0.00014191,2]
[353001663,1739483457845,-737.85,0.00014191,2]
[353001664,1739483457854,-844.56,0.00014191,2]
[353001665,1739483457864,-500.0,0.00014191,2]
[353001666,1739483457873,-500.0,0.00014191,2]
[353001667,1739483457882,-841.19,0.00014191,2]
[353001668,1739483457895,-649.83,0.00014191,2]
[353001669,1739483457905,-1503.25,0.00014191,2]
[353001670,1739483457914,-151.0,0.000142,2]
[353001671,1739483457924,-154.923869,0.000142,2]
[353001672,1739483457933,-231.180894,0.000142,2]
[353001673,1739483457943,-151.0,0.00014207,2]
[353001674,1739483457952,-151.0,0.00014207,2]
[353001675,1739483457962,-880.957763,0.00014207,2]
[353001676,1739483457972,-151.0,0.00014207,2]
[353001677,1739483457982,-880.957763,0.00014207,2]
[353001678,1739483457993,-235.075928,0.00014207,2]
[353001679,1739483458003,-151.0,0.00014207,2]
[353001680,1739483458013,-151.0,0.00014207,2]